[Event "Norm Congress-GM 2019"]
[Site "Saint Louis"]
[Date "2019.05.16"]
[Round "1.5"]
[White "Banawa, Joel"]
[Black "Abrahamyan, Tatev"]
[Result "1-0"]
[ECO "C00"]
[WhiteElo "2396"]
[BlackElo "2373"]
[Annotator "RC"]
[PlyCount "63"]
[EventDate "2019.05.16"]
[EventType "tourn"]
[EventCountry "USA"]
[SourceTitle "playchess.com"]
[Source "ChessBase"]
[SourceQuality "1"]
[TimeControl "5400+30"]

1. e4 {[%emt 0:00:00]} e6 {[%emt 0:00:00]} 2. d4 {[%emt 0:00:00]} d5 {[%emt 0:00:00]} 3. Bd3 {[%emt 0:00:24]} dxe4 {[%emt 0:01:48]} 4. Bxe4 {[%emt 0:00:04]} Nf6 {[%emt 0:00:03]} 5. Bf3 {[%emt 0:00:04]} c5 {[%emt 0:01:20]} 6. Ne2 {[%emt 0:00:06]} cxd4 {[%emt 0:03:43]} 7. Qxd4 {[%emt 0:00:13]} Nbd7 {[%emt 0:00:29]} 8. O-O {[%emt 0:18:27]} Bc5 {[%emt 0:11:09]} 9. Qc3 {[%emt 0:04:56]} O-O {[%emt 0:08:01]} 10. Nd2 {[%emt 0:14:36]} e5 {[%emt 0:15:22]} 11. Ng3 {[%emt 0:14:17]} Bd4 {[%emt 0:24:32]} 12. Qb4 {[%emt 0:08:07]} Nc5 {[%emt 0:05:20]} 13. Nb3 {[%emt 0:02:14]} a5 {[%emt 0:05:13]} 14. Qe1 {[%emt 0:01:59]} Nxb3 {[%emt 0:02:44]} 15. axb3 {[%emt 0:00:03]} Re8 {[%emt 0:00:50]} 16. b4 {[%emt 0:05:30]} e4 {[%emt 0:03:45]} 17. Bd1 {[%emt 0:03:42]} Bb6 {[%emt 0:02:29]} 18. Be3 {[%emt 0:05:47]} Nd5 {[%emt 0:02:00]} 19. Bxb6 {[%emt 0:10:51]} Qxb6 {[%emt 0:00:07]} 20. Rxa5 {[%emt 0:00:01]} Rxa5 {[%emt 0:00:55]} 21. bxa5 {[%emt 0:00:05]} Qxb2 {[%emt 0:00:03]} 22. Qd2 {[%emt 0:02:32]} Nf6 {[%emt 0:06:41]} 23. Re1 {[%emt 0:00:58]} g6 {[%emt 0:01:28]} 24. h3 {[%emt 0:00:33]} Qb5 {[%emt 0:01:05]} 25. Qc3 {[%emt 0:01:36]} Nd5 {[%emt 0:01:04]} 26. Qd4 {[%emt 0:00:22]} Qxa5 {[%emt 0:01:48]} 27. Rxe4 {[%emt 0:00:15]} Rd8 {[%emt 0:00:25]} 28. Qe5 Qc3 {[%emt 0:00:32]} 29. Rd4 {[%emt 0:01:50]} Be6 {[%emt 0:00:51]} 30. Bf3 {[%emt 0:00:13]} Qa5 {[%emt 0:00:40]} 31. c4 {[%emt 0:00:13]} Qa1+ {[%emt 0:00:28]} 32. Kh2 {[%emt 0:00:05]} 1-0

[Event "Norm Congress-GM 2019"]
[Site "Saint Louis"]
[Date "2019.05.17"]
[Round "2.3"]
[White "Jacobson, Brandon"]
[Black "Escalante Ramirez, Brian Sebasti"]
[Result "1-0"]
[ECO "A28"]
[WhiteElo "2503"]
[BlackElo "2452"]
[Annotator "RC"]
[PlyCount "53"]
[EventDate "2019.05.16"]
[EventType "tourn"]
[EventCountry "USA"]
[SourceTitle "playchess.com"]
[Source "ChessBase"]
[SourceQuality "1"]
[TimeControl "5400+30"]

1. c4 {[%emt 0:02:32]} e5 {[%emt 0:00:00]} 2. Nc3 {[%emt 0:02:46]} Nf6 {[%emt 0:00:00]} 3. Nf3 {[%emt 0:00:06]} Nc6 {[%emt 0:00:00]} 4. e4 {[%emt 0:00:05]} Bc5 {[%emt 0:03:42]} 5. Nxe5 {[%emt 0:00:08]} Nxe5 {[%emt 0:01:24]} 6. d4 {[%emt 0:00:05]} Bb4 {[%emt 0:03:15]} 7. dxe5 {[%emt 0:00:05]} Nxe4 {[%emt 0:00:02]} 8. Qf3 {[%emt 0:00:05]} Nxc3 {[%emt 0:03:14]} 9. bxc3 {[%emt 0:00:02]} Ba5 {[%emt 0:01:28]} 10. Bf4 {[%emt 0:01:43]} Qe7 {[%emt 0:02:00]} 11. Be2 {[%emt 0:02:57]} g5 {[%emt 0:17:46]} 12. Bg3 {[%emt 0:02:26]} h5 {[%emt 0:00:30]} 13. h3 {[%emt 0:05:19]} Qe6 {[%emt 0:08:34]} 14. Rd1 {[%emt 0:13:44]} Rb8 {[%emt 0:09:07]} 15. Qe3 {[%emt 0:19:02]} b6 {[%emt 0:00:17]} 16. O-O {[%emt 0:00:07]} g4 {[%emt 0:00:23]} 17. hxg4 {[%emt 0:04:27]} hxg4 {[%emt 0:00:02]} 18. Rd4 {[%emt 0:00:06]} Qh6 {[%emt 0:03:04]} 19. Qxh6 {[%emt 0:00:06]} Rxh6 {[%emt 0:00:04]} 20. Rxg4 {[%emt 0:07:48]} Kf8 {[%emt 0:00:01]} 21. Bf4 {[%emt 0:00:27]} Rg6 {[%emt 0:00:05]} 22. Rxg6 {[%emt 0:05:47]} fxg6 {[%emt 0:00:02]} 23. Rd1 {[%emt 0:00:05]} a6 {[%emt 0:05:04]} 24. Rd3 {[%emt 0:07:58]} b5 {[%emt 0:03:55]} 25. c5 {[%emt 0:00:07]} b4 {[%emt 0:00:37]} 26. c4 {[%emt 0:00:21]} Kf7 {[%emt 0:01:40]} 27. Bf3 {[%emt 0:02:28]} 1-0

[Event "Norm Congress-GM 2019"]
[Site "Saint Louis"]
[Date "2019.05.17"]
[Round "2.4"]
[White "Boros, Denes"]
[Black "Shtembuliak, Evgeny"]
[Result "1/2-1/2"]
[ECO "C02"]
[WhiteElo "2439"]
[BlackElo "2516"]
[Annotator "RC"]
[PlyCount "33"]
[EventDate "2019.05.16"]
[EventType "tourn"]
[EventCountry "USA"]
[SourceTitle "playchess.com"]
[Source "ChessBase"]
[SourceQuality "1"]
[TimeControl "5400+30"]

1. e4 {[%emt 0:00:00]} e6 {[%emt 0:00:33]} 2. d4 {[%emt 0:00:00]} d5 {[%emt 0:00:05]} 3. e5 {[%emt 0:00:00]} c5 {[%emt 0:00:06]} 4. c3 {[%emt 0:00:00]} Nc6 {[%emt 0:00:06]} 5. Nf3 {[%emt 0:00:01]} Bd7 {[%emt 0:00:20]} 6. Be2 {[%emt 0:00:13]} Nge7 {[%emt 0:00:58]} 7. O-O {[%emt 0:00:54]} Ng6 {[%emt 0:01:08]} 8. g3 {[%emt 0:00:41]} Be7 {[%emt 0:02:04]} 9. h4 {[%emt 0:00:53]} cxd4 {[%emt 0:00:33]} 10. cxd4 {[%emt 0:00:18]} O-O {[%emt 0:00:05]} 11. h5 {[%emt 0:01:19]} Nh8 {[%emt 0:00:15]} 12. h6 {[%emt 0:03:40]} g6 {[%emt 0:00:23]} 13. Nc3 {[%emt 0:00:05]} f6 {[%emt 0:00:11]} 14. exf6 {[%emt 0:01:04]} Bxf6 {[%emt 0:00:06]} 15. Bf4 {[%emt 0:00:06]} Nf7 {[%emt 0:00:52]} 16. Qd2 {[%emt 0:00:16]} Kh8 {[%emt 0:14:29]} 17. Kg2 {[%emt 0:03:39]} 1/2-1/2

[Event "Norm Congress-GM 2019"]
[Site "Saint Louis"]
[Date "2019.05.17"]
[Round "3.2"]
[White "Shtembuliak, Evgeny"]
[Black "Ali Marandi, Cemil Can"]
[Result "1/2-1/2"]
[ECO "A34"]
[WhiteElo "2516"]
[BlackElo "2531"]
[Annotator "ChessBase"]
[PlyCount "21"]
[EventDate "2019.05.16"]
[EventType "tourn"]
[EventCountry "USA"]
[SourceTitle "playchess.com"]
[Source "ChessBase"]
[SourceQuality "1"]
[TimeControl "5400+30"]

1. c4 {[%emt 0:01:36]} c5 {[%emt 0:00:55]} 2. Nf3 {[%emt 0:02:47]} Nf6 {[%emt 0:02:06]} 3. Nc3 {[%emt 0:01:16]} d5 {[%emt 0:02:15]} 4. cxd5 {[%emt 0:00:08]} Nxd5 {[%emt 0:00:08]} 5. e4 {[%emt 0:04:54]} Nb4 {[%emt 0:04:15]} 6. Bc4 {[%emt 0:00:43]} Nd3+ {[%emt 0:00:09]} 7. Ke2 {[%emt 0:00:08]} Nf4+ {[%emt 0:00:05]} 8. Kf1 {[%emt 0:00:05]} Nd3 {[%emt 0:03:46]} 9. Ke2 {[%emt 0:04:02]} Nf4+ {[%emt 0:00:24]} 10. Kf1 {[%emt 0:00:06]} Nd3 {[%emt 0:00:05]} 11. Ke2 {[%emt 0:00:19]} 1/2-1/2

[Event "Norm Congress-GM 2019"]
[Site "Saint Louis"]
[Date "2019.05.17"]
[Round "3.3"]
[White "Escalante Ramirez, Brian Sebasti"]
[Black "Boros, Denes"]
[Result "1/2-1/2"]
[ECO "B00"]
[WhiteElo "2452"]
[BlackElo "2439"]
[Annotator "ChessBase"]
[PlyCount "105"]
[EventDate "2019.05.16"]
[EventType "tourn"]
[EventCountry "USA"]
[SourceTitle "playchess.com"]
[Source "ChessBase"]
[SourceQuality "1"]
[TimeControl "5400+30"]

1. e4 {[%emt 0:00:00]} Nc6 {[%emt 0:00:00]} 2. Nf3 {[%emt 0:00:02]} d6 {[%emt 0:00:00]} 3. d4 {[%emt 0:01:51]} Nf6 {[%emt 0:00:56]} 4. d5 {[%emt 0:00:14]} Nb8 {[%emt 0:00:11]} 5. Bd3 {[%emt 0:00:02]} Bg4 {[%emt 0:00:50]} 6. c4 {[%emt 0:03:11]} Nbd7 {[%emt 0:02:22]} 7. Nc3 {[%emt 0:00:02]} g6 {[%emt 0:00:36]} 8. Be3 {[%emt 0:01:35]} Bg7 {[%emt 0:00:56]} 9. Qd2 {[%emt 0:00:32]} Bxf3 {[%emt 0:03:47]} 10. gxf3 {[%emt 0:02:23]} c6 {[%emt 0:01:00]} 11. O-O-O {[%emt 0:00:59]} Qa5 {[%emt 0:11:28]} 12. Kb1 {[%emt 0:00:54]} Qb4 {[%emt 0:11:26]} 13. a3 {[%emt 0:02:12]} Qb3 {[%emt 0:07:25]} 14. Qc2 {[%emt 0:08:30]} Qxc2+ {[%emt 0:00:51]} 15. Kxc2 {[%emt 0:00:03]} cxd5 {[%emt 0:05:53]} 16. cxd5 {[%emt 0:00:47]} O-O {[%emt 0:00:41]} 17. Rc1 {[%emt 0:02:07]} Rfc8 {[%emt 0:01:00]} 18. Kb1 {[%emt 0:03:22]} Nc5 {[%emt 0:03:06]} 19. Rhd1 {[%emt 0:12:10]} Nxd3 {[%emt 0:04:08]} 20. Rxd3 {[%emt 0:00:02]} Nd7 {[%emt 0:00:06]} 21. Ne2 {[%emt 0:00:36]} Rxc1+ {[%emt 0:02:04]} 22. Bxc1 {[%emt 0:00:10]} Nc5 {[%emt 0:01:05]} 23. Rd1 {[%emt 0:01:22]} a5 {[%emt 0:08:15]} 24. Be3 {[%emt 0:00:19]} Na4 {[%emt 0:09:19]} 25. b3 {[%emt 0:00:14]} Nc5 {[%emt 0:00:11]} 26. Rc1 {[%emt 0:15:00]} b6 {[%emt 0:05:33]} 27. Ka2 {[%emt 0:01:19]} Kf8 {[%emt 0:03:20]} 28. Nd4 {[%emt 0:21:22]} Ke8 {[%emt 0:00:37]} 29. Nb5 {[%emt 0:01:55]} Kd7 {[%emt 0:00:10]} 30. a4 {[%emt 0:05:32]} f5 {[%emt 0:03:29]} 31. exf5 {[%emt 0:04:32]} gxf5 {[%emt 0:00:02]} 32. Rg1 {[%emt 0:02:41]} Bf6 {[%emt 0:00:11]} 33. Bd4 {[%emt 0:00:07]} Rf8 {[%emt 0:00:39]} 34. Rg3 {[%emt 0:01:14]} f4 {[%emt 0:02:39]} 35. Rh3 {[%emt 0:00:38]} Bxd4 {[%emt 0:01:25]} 36. Nxd4 {[%emt 0:00:01]} Rf7 {[%emt 0:00:21]} 37. Kb2 {[%emt 0:02:32]} e6 {[%emt 0:02:58]} 38. dxe6+ {[%emt 0:00:34]} Nxe6 {[%emt 0:00:02]} 39. Kc3 {[%emt 0:01:23]} Nxd4 {[%emt 0:02:35]} 40. Kxd4 {[%emt 0:00:01]} Kc6 {[%emt 0:00:10]} 41. Rh6 {[%emt 0:01:31]} Re7 {[%emt 0:02:08]} 42. h4 {[%emt 0:00:02]} Re2 {[%emt 0:02:24]} 43. Rxh7 {[%emt 0:00:01]} Rb2 {[%emt 0:01:16]} 44. Rf7 {[%emt 0:04:20]} Rxb3 {[%emt 0:00:02]} 45. Rxf4 {[%emt 0:00:05]} b5 {[%emt 0:01:06]} 46. axb5+ {[%emt 0:00:08]} Rxb5 {[%emt 0:00:07]} 47. Kc3 {[%emt 0:00:22]} Kd7 {[%emt 0:00:41]} 48. Rg4 {[%emt 0:01:29]} Rf5 {[%emt 0:01:07]} 49. f4 {[%emt 0:01:40]} Ke7 {[%emt 0:01:51]} 50. Kb3 {[%emt 0:01:12]} Kf6 {[%emt 0:00:36]} 51. Ka4 {[%emt 0:00:46]} Rd5 {[%emt 0:00:58]} 52. Rg5 {[%emt 0:00:21]} Rd4+ {[%emt 0:00:14]} 53. Kxa5 {[%emt 0:00:09]} 1/2-1/2

[Event "Norm Congress-GM 2019"]
[Site "Saint Louis"]
[Date "2019.05.17"]
[Round "3.4"]
[White "Banawa, Joel"]
[Black "Jacobson, Brandon"]
[Result "1/2-1/2"]
[ECO "B23"]
[WhiteElo "2396"]
[BlackElo "2503"]
[Annotator "RC"]
[PlyCount "61"]
[EventDate "2019.05.16"]
[EventType "tourn"]
[EventCountry "USA"]
[SourceTitle "playchess.com"]
[Source "ChessBase"]
[SourceQuality "1"]
[TimeControl "5400+30"]

1. e4 {[%emt 0:00:00]} c5 {[%emt 0:03:16]} 2. Nc3 {[%emt 0:00:00]} d6 {[%emt 0:00:23]} 3. f4 {[%emt 0:00:00]} Nc6 {[%emt 0:05:56]} 4. Nf3 {[%emt 0:00:04]} g6 {[%emt 0:00:05]} 5. Bc4 {[%emt 0:00:09]} Bg7 {[%emt 0:00:06]} 6. O-O {[%emt 0:00:04]} e6 {[%emt 0:00:03]} 7. d4 {[%emt 0:00:03]} cxd4 {[%emt 0:01:37]} 8. Nb5 {[%emt 0:00:06]} Nge7 9. Bb3 {[%emt 0:00:13]} a6 {[%emt 0:13:55]} 10. Nbxd4 {[%emt 0:00:26]} Nxd4 {[%emt 0:00:10]} 11. Nxd4 {[%emt 0:00:06]} O-O {[%emt 0:00:10]} 12. c3 {[%emt 0:07:42]} b5 {[%emt 0:08:08]} 13. a3 {[%emt 0:09:52]} Qc7 {[%emt 0:25:02]} 14. Qe1 {[%emt 0:06:34]} Bd7 {[%emt 0:10:57]} 15. Kh1 {[%emt 0:06:50]} Rae8 {[%emt 0:02:44]} 16. Qh4 {[%emt 0:03:39]} Nc6 {[%emt 0:02:09]} 17. Nf3 {[%emt 0:00:10]} Qd8 {[%emt 0:03:47]} 18. Qg3 {[%emt 0:18:39]} Kh8 {[%emt 0:00:02]} 19. Rd1 {[%emt 0:00:47]} Qe7 {[%emt 0:01:19]} 20. e5 {[%emt 0:04:15]} d5 {[%emt 0:02:26]} 21. Be3 {[%emt 0:10:57]} f6 {[%emt 0:00:23]} 22. exf6 {[%emt 0:01:16]} Bxf6 {[%emt 0:00:03]} 23. Re1 {[%emt 0:06:39]} Qg7 {[%emt 0:02:42]} 24. Rad1 {[%emt 0:00:19]} Rf7 {[%emt 0:03:09]} 25. Bc5 {[%emt 0:02:50]} Na5 {[%emt 0:09:25]} 26. Ba2 {[%emt 0:00:16]} Nb7 {[%emt 0:00:45]} 27. Bd4 {[%emt 0:05:05]} Bxd4 {[%emt 0:00:02]} 28. Rxd4 {[%emt 0:00:06]} Nd6 {[%emt 0:00:02]} 29. Bb1 {[%emt 0:00:05]} Rff8 {[%emt 0:00:55]} 30. Ne5 {[%emt 0:04:52]} Nc4 {[%emt 0:00:03]} 31. Nd3 {[%emt 0:06:31]} 1/2-1/2

[Event "Norm Congress-GM 2019"]
[Site "Saint Louis"]
[Date "2019.05.18"]
[Round "4.1"]
[White "Korley, Kassa"]
[Black "Hong, Andrew"]
[Result "0-1"]
[ECO "A06"]
[WhiteElo "2468"]
[BlackElo "2414"]
[Annotator "RC"]
[PlyCount "118"]
[EventDate "2019.05.16"]
[EventType "tourn"]
[EventCountry "USA"]
[SourceTitle "playchess.com"]
[Source "ChessBase"]
[SourceQuality "1"]
[TimeControl "5400+30"]

1. Nf3 {[%emt 0:00:00]} d5 {[%emt 0:00:00]} 2. g3 {[%emt 0:00:00]} g6 {[%emt 0:00:27]} 3. Bg2 {[%emt 0:00:13]} Bg7 {[%emt 0:00:09]} 4. d4 {[%emt 0:00:07]} Nf6 {[%emt 0:00:29]} 5. O-O {[%emt 0:00:11]} O-O {[%emt 0:00:18]} 6. c3 {[%emt 0:00:13]} a5 {[%emt 0:02:57]} 7. a4 {[%emt 0:00:11]} Nbd7 {[%emt 0:03:30]} 8. Na3 {[%emt 0:05:19]} Re8 {[%emt 0:02:15]} 9. c4 {[%emt 0:00:29]} c6 {[%emt 0:02:34]} 10. cxd5 {[%emt 0:01:10]} Nxd5 {[%emt 0:01:11]} 11. e4 {[%emt 0:11:49]} Nb4 {[%emt 0:01:46]} 12. Bf4 {[%emt 0:03:30]} Nb6 {[%emt 0:08:05]} 13. h3 {[%emt 0:06:28]} Be6 {[%emt 0:07:03]} 14. b3 {[%emt 0:06:20]} Qd7 {[%emt 0:18:00]} 15. Kh2 {[%emt 0:00:22]} Rad8 {[%emt 0:03:37]} 16. Rb1 {[%emt 0:05:41]} Bxd4 {[%emt 0:09:19]} 17. Nxd4 Qxd4 18. Qxd4 {[%emt 0:05:00]} Rxd4 {[%emt 0:00:36]} 19. Be3 {[%emt 0:02:47]} Red8 {[%emt 0:14:57]} 20. Bf3 {[%emt 0:04:55]} c5 {[%emt 0:00:30]} 21. Rfc1 {[%emt 0:05:51]} Nd7 22. Bxd4 {[%emt 0:10:02]} cxd4 {[%emt 0:06:59]} 23. Bg4 {[%emt 0:02:53]} f5 {[%emt 0:02:29]} 24. exf5 {[%emt 0:00:08]} gxf5 {[%emt 0:00:14]} 25. Bf3 {[%emt 0:02:36]} b6 {[%emt 0:02:12]} 26. Rc7 {[%emt 0:01:26]} Kf7 {[%emt 0:02:45]} 27. Rb7 {[%emt 0:02:24]} d3 {[%emt 0:01:09]} 28. Bh5+ {[%emt 0:04:15]} Kf6 {[%emt 0:03:15]} 29. f4 {[%emt 0:00:15]} Bd5 {[%emt 0:01:57]} 30. Rc7 {[%emt 0:00:06]} Nc5 {[%emt 0:01:26]} 31. Bd1 {[%emt 0:01:27]} d2 {[%emt 0:00:53]} 32. Nc4 {[%emt 0:00:28]} Bxc4 {[%emt 0:01:37]} 33. bxc4 {[%emt 0:00:01]} Ne4 {[%emt 0:00:16]} 34. Rb7 {[%emt 0:02:06]} Rd6 {[%emt 0:00:06]} 35. g4 {[%emt 0:00:44]} Nc3 {[%emt 0:00:52]} 36. g5+ {[%emt 0:00:05]} Ke6 {[%emt 0:00:17]} 37. Ra1 {[%emt 0:00:03]} Nd3 {[%emt 0:00:11]} 38. Bf3 {[%emt 0:02:27]} Nxf4 {[%emt 0:01:08]} 39. Kg3 {[%emt 0:00:01]} Nd3 {[%emt 0:00:48]} 40. Kh4 {[%emt 0:00:15]} Ne1 {[%emt 0:02:01]} 41. Bh5 {[%emt 0:00:47]} Rd4+ {[%emt 0:00:20]} 42. Kg3 {[%emt 0:00:01]} f4+ {[%emt 0:00:29]} 43. Kf2 {[%emt 0:00:02]} Nd3+ {[%emt 0:00:26]} 44. Kf1 {[%emt 0:00:05]} Rd6 {[%emt 0:00:35]} 45. Bg4+ {[%emt 0:01:03]} Kf7 {[%emt 0:00:04]} 46. Bh5+ {[%emt 0:00:03]} Kf8 {[%emt 0:00:08]} 47. Ra3 {[%emt 0:00:18]} Ne4 {[%emt 0:00:52]} 48. Bg4 {[%emt 0:03:05]} Ng3+ {[%emt 0:00:35]} 49. Kg2 {[%emt 0:00:05]} Nc1 {[%emt 0:00:34]} 50. Bd1 {[%emt 0:00:38]} Nf5 {[%emt 0:00:52]} 51. Kf3 {[%emt 0:00:17]} Ne3 {[%emt 0:00:43]} 52. Rxe3 {[%emt 0:00:06]} fxe3 {[%emt 0:00:04]} 53. Kxe3 {[%emt 0:00:01]} Na2 {[%emt 0:00:16]} 54. c5 {[%emt 0:00:19]} bxc5 {[%emt 0:00:09]} 55. Rb3 {[%emt 0:04:05]} c4 {[%emt 0:00:53]} 56. Ra3 {[%emt 0:00:01]} Nb4 {[%emt 0:00:11]} 57. Ke2 {[%emt 0:00:01]} Rd4 {[%emt 0:00:28]} 58. Rf3+ {[%emt 0:00:17]} Kg7 {[%emt 0:00:20]} 59. Rf5 {[%emt 0:00:01]} c3 {[%emt 0:01:32]} 0-1

[Event "Norm Congress-GM 2019"]
[Site "Saint Louis"]
[Date "2019.05.18"]
[Round "4.2"]
[White "Jacobson, Brandon"]
[Black "Abrahamyan, Tatev"]
[Result "1-0"]
[ECO "C16"]
[WhiteElo "2503"]
[BlackElo "2373"]
[Annotator "RC"]
[PlyCount "133"]
[EventDate "2019.05.16"]
[EventType "tourn"]
[EventCountry "USA"]
[SourceTitle "playchess.com"]
[Source "ChessBase"]
[SourceQuality "1"]
[TimeControl "5400+30"]

1. e4 {[%emt 0:02:47]} e6 {[%emt 0:00:00]} 2. d4 {[%emt 0:00:09]} d5 {[%emt 0:00:00]} 3. Nc3 {[%emt 0:00:05]} Bb4 {[%emt 0:00:00]} 4. e5 {[%emt 0:00:03]} b6 {[%emt 0:02:33]} 5. a3 {[%emt 0:00:11]} Bxc3+ {[%emt 0:00:13]} 6. bxc3 {[%emt 0:00:05]} Qd7 {[%emt 0:00:04]} 7. Qg4 {[%emt 0:00:03]} f5 {[%emt 0:00:20]} 8. Qg3 {[%emt 0:00:04]} Ba6 {[%emt 0:02:04]} 9. Bxa6 {[%emt 0:00:06]} Nxa6 {[%emt 0:00:02]} 10. Ne2 {[%emt 0:00:05]} h6 {[%emt 0:01:13]} 11. h4 {[%emt 0:00:22]} Kf7 {[%emt 0:00:44]} 12. a4 {[%emt 0:06:36]} Ne7 {[%emt 0:04:04]} 13. h5 {[%emt 0:11:31]} c5 {[%emt 0:07:56]} 14. Rh3 {[%emt 0:20:20]} Rac8 {[%emt 0:07:40]} 15. Qd3 {[%emt 0:21:05]} Nb8 {[%emt 0:03:13]} 16. Rf3 {[%emt 0:04:45]} Nbc6 {[%emt 0:10:06]} 17. Rb1 {[%emt 0:00:01]} Ke8 {[%emt 0:11:55]} 18. g4 {[%emt 0:01:40]} fxg4 {[%emt 0:01:12]} 19. Rf4 {[%emt 0:05:50]} Nf5 {[%emt 0:01:07]} 20. Be3 {[%emt 0:12:31]} Nce7 {[%emt 0:08:59]} 21. a5 {[%emt 0:01:42]} Qc6 {[%emt 0:14:00]} 22. axb6 {[%emt 0:07:52]} axb6 {[%emt 0:01:48]} 23. Qa6 {[%emt 0:00:02]} Rb8 {[%emt 0:04:54]} 24. dxc5 {[%emt 0:00:53]} Nxe3 {[%emt 0:07:16]} 25. fxe3 {[%emt 0:00:01]} Qxc5 {[%emt 0:00:12]} 26. Kd2 {[%emt 0:00:02]} Nf5 {[%emt 0:02:35]} 27. Nd4 {[%emt 0:00:28]} Rc8 {[%emt 0:01:14]} 28. Qd3 {[%emt 0:01:57]} Ke7 {[%emt 0:05:07]} 29. Rb5 {[%emt 0:01:36]} Qc7 {[%emt 0:00:21]} 30. Nxe6 {[%emt 0:01:31]} Qxe5 {[%emt 0:00:20]} 31. Rxb6 {[%emt 0:00:31]} Nd6 {[%emt 0:00:32]} 32. Rxg4 {[%emt 0:00:32]} Qxe6 {[%emt 0:02:19]} 33. Rxg7+ {[%emt 0:00:14]} Kf8 {[%emt 0:00:25]} 34. Rg6 {[%emt 0:00:15]} Ne4+ {[%emt 0:00:22]} 35. Kc1 {[%emt 0:00:01]} Qe7 {[%emt 0:00:59]} 36. Qa6 {[%emt 0:00:33]} Re8 {[%emt 0:01:16]} 37. Rbe6 {[%emt 0:01:15]} Qf7 {[%emt 0:00:42]} 38. Qa3+ {[%emt 0:00:38]} Re7 {[%emt 0:00:03]} 39. Qa8+ {[%emt 0:00:22]} Re8 {[%emt 0:00:22]} 40. Qa3+ {[%emt 0:00:36]} Re7 {[%emt 0:00:03]} 41. Qa8+ {[%emt 0:00:02]} Re8 {[%emt 0:00:05]} 42. Rxe8+ {[%emt 0:00:02]} Qxe8 {[%emt 0:00:07]} 43. Qxd5 {[%emt 0:00:02]} Ng5 {[%emt 0:02:14]} 44. Qc5+ {[%emt 0:02:01]} Qe7 {[%emt 0:00:22]} 45. Qc8+ {[%emt 0:00:12]} Qe8 {[%emt 0:00:03]} 46. Qc5+ {[%emt 0:00:41]} Qe7 {[%emt 0:00:02]} 47. Qc8+ {[%emt 0:00:27]} Qe8 {[%emt 0:00:01]} 48. Qf5+ {[%emt 0:00:07]} Nf7 {[%emt 0:00:12]} 49. Re6 {[%emt 0:00:54]} Qd7 {[%emt 0:02:30]} 50. Qc5+ {[%emt 0:00:34]} Kg7 {[%emt 0:00:09]} 51. Re7 {[%emt 0:00:33]} Qg4 {[%emt 0:00:45]} 52. Qe5+ {[%emt 0:00:17]} Kg8 {[%emt 0:00:10]} 53. Qb8+ {[%emt 0:00:29]} Kg7 {[%emt 0:00:05]} 54. Qe5+ {[%emt 0:00:44]} Kg8 {[%emt 0:00:06]} 55. Qb8+ {[%emt 0:00:31]} Kg7 {[%emt 0:00:03]} 56. Rxf7+ {[%emt 0:00:31]} Kxf7 {[%emt 0:00:04]} 57. Qxh8 {[%emt 0:00:03]} Qxh5 {[%emt 0:00:38]} 58. c4 {[%emt 0:00:34]} Qh1+ {[%emt 0:01:09]} 59. Kb2 {[%emt 0:00:06]} h5 {[%emt 0:00:02]} 60. e4 {[%emt 0:01:14]} h4 {[%emt 0:01:23]} 61. Qh5+ {[%emt 0:00:02]} Ke7 {[%emt 0:00:24]} 62. Qe5+ {[%emt 0:00:12]} Kf7 {[%emt 0:00:29]} 63. c5 {[%emt 0:00:28]} h3 {[%emt 0:01:34]} 64. c6 {[%emt 0:00:27]} h2 {[%emt 0:00:12]} 65. c7 {[%emt 0:00:49]} Qe1 {[%emt 0:00:00]} 66. Qd5+ {[%emt 0:00:53]} Kg7 {[%emt 0:00:26]} 67. Qd4+ {[%emt 0:00:06]} 1-0

[Event "Norm Congress-GM 2019"]
[Site "Saint Louis"]
[Date "2019.05.19"]
[Round "6.2"]
[White "Boros, Denes"]
[Black "Hong, Andrew"]
[Result "1-0"]
[ECO "B90"]
[WhiteElo "2439"]
[BlackElo "2414"]
[Annotator "RC"]
[PlyCount "97"]
[EventDate "2019.05.16"]
[EventType "tourn"]
[EventCountry "USA"]
[SourceTitle "playchess.com"]
[Source "ChessBase"]
[SourceQuality "1"]
[TimeControl "5400+30"]

1. e4 {[%emt 0:00:00]} c5 {[%emt 0:00:00]} 2. Nf3 {[%emt 0:00:00]} d6 {[%emt 0:00:24]} 3. d4 {[%emt 0:00:00]} cxd4 {[%emt 0:00:07]} 4. Nxd4 {[%emt 0:00:02]} Nf6 {[%emt 0:00:10]} 5. Nc3 {[%emt 0:00:09]} a6 {[%emt 0:00:17]} 6. a4 {[%emt 0:00:09]} e5 {[%emt 0:03:39]} 7. Nf3 {[%emt 0:00:15]} Be7 {[%emt 0:07:11]} 8. Bc4 {[%emt 0:01:00]} Be6 {[%emt 0:03:20]} 9. Qe2 {[%emt 0:04:18]} O-O {[%emt 0:06:05]} 10. Ba2 {[%emt 0:05:46]} Nc6 {[%emt 0:02:28]} 11. O-O {[%emt 0:00:32]} Rc8 {[%emt 0:04:57]} 12. Rd1 {[%emt 0:01:55]} Qc7 {[%emt 0:05:03]} 13. Bg5 {[%emt 0:08:48]} Nb4 {[%emt 0:04:50]} 14. Bb3 {[%emt 0:01:13]} Rfd8 {[%emt 0:16:39]} 15. Ne1 {[%emt 0:08:45]} Bg4 {[%emt 0:07:42]} 16. f3 {[%emt 0:05:33]} Be6 {[%emt 0:01:17]} 17. Kh1 {[%emt 0:06:43]} Ne8 {[%emt 0:08:55]} 18. Be3 {[%emt 0:02:27]} Bxb3 {[%emt 0:05:44]} 19. cxb3 {[%emt 0:00:24]} d5 {[%emt 0:00:14]} 20. Nxd5 {[%emt 0:06:16]} Nxd5 {[%emt 0:00:13]} 21. Rac1 {[%emt 0:01:39]} Nxe3 {[%emt 0:13:09]} 22. Rxc7 {[%emt 0:00:28]} Nxc7 {[%emt 0:00:50]} 23. Rxd8+ {[%emt 0:01:00]} Rxd8 {[%emt 0:01:25]} 24. Qxe3 {[%emt 0:01:03]} Rd1 {[%emt 0:05:07]} 25. Qc3 {[%emt 0:01:28]} a5 {[%emt 0:01:40]} 26. g3 {[%emt 0:02:14]} Na6 {[%emt 0:00:49]} 27. Kg2 {[%emt 0:01:07]} Bb4 {[%emt 0:00:35]} 28. Qc8+ {[%emt 0:02:33]} Bf8 {[%emt 0:00:02]} 29. Kf2 {[%emt 0:01:23]} Nc5 {[%emt 0:00:57]} 30. Ke2 {[%emt 0:03:52]} Rc1 {[%emt 0:00:27]} 31. f4 {[%emt 0:02:30]} g6 {[%emt 0:00:38]} 32. Nf3 {[%emt 0:01:08]} exf4 {[%emt 0:00:28]} 33. gxf4 {[%emt 0:01:31]} Rc2+ {[%emt 0:00:27]} 34. Ke3 {[%emt 0:03:59]} Rxb2 {[%emt 0:00:23]} 35. Nd4 {[%emt 0:00:27]} Rxh2 {[%emt 0:00:46]} 36. e5 {[%emt 0:00:26]} Rb2 {[%emt 0:00:26]} 37. e6 {[%emt 0:01:02]} fxe6 {[%emt 0:00:33]} 38. Nxe6 {[%emt 0:00:10]} Rxb3+ {[%emt 0:00:01]} 39. Ke2 {[%emt 0:00:39]} Rb2+ {[%emt 0:00:08]} 40. Kd1 {[%emt 0:00:20]} Kf7 {[%emt 0:01:03]} 41. Nxf8 {[%emt 0:01:58]} Nd3 {[%emt 0:00:33]} 42. Nxh7 {[%emt 0:01:36]} Nf2+ {[%emt 0:00:37]} 43. Ke1 {[%emt 0:00:12]} Nd3+ {[%emt 0:00:11]} 44. Kf1 {[%emt 0:00:06]} Rb1+ {[%emt 0:00:50]} 45. Kg2 {[%emt 0:00:59]} Nxf4+ {[%emt 0:00:20]} 46. Kf2 {[%emt 0:01:12]} Rb4 {[%emt 0:00:41]} 47. Qd7+ {[%emt 0:01:27]} Kg8 {[%emt 0:00:05]} 48. Ng5 {[%emt 0:00:18]} Rb2+ {[%emt 0:00:47]} 49. Kf3 {[%emt 0:00:07]} 1-0